[Event "British Championship 2024"]
[Site "Hull"]
[Date "2024.07.31"]
[Round "5.41"]
[White "Merriman, James"]
[Black "Pal, Rohan"]
[Result "1/2-1/2"]
[Annotator "RC"]
[ECO "D37"]
[WhiteElo "1974"]
[BlackElo "2097"]
[PlyCount "33"]
[EventDate "2024.07.31"]
[EventCountry "GBR"]
[SourceTitle "playchess.com"]
[Source "ChessBase"]
[SourceQuality "1"]
[TimeControl "40/5400+30:1800+30"]

1. d4 {[%emt 0:01:40]} d5 {[%emt 0:00:04]} 2. c4 {[%emt 0:01:28]} e6 {[%emt 0:00:02]} 3. Nc3 {[%emt 0:00:05]} Be7 {[%emt 0:00:02]} 4. Nf3 {[%emt 0:01:12]} Nf6 {[%emt 0:00:04]} 5. cxd5 {[%emt 0:00:24]} exd5 {[%emt 0:00:05]} 6. Bf4 {[%emt 0:00:06]} O-O {[%emt 0:02:00]} 7. Qc2 {[%emt 0:00:13]} c5 {[%emt 0:01:18]} 8. dxc5 {[%emt 0:04:34]} Bxc5 {[%emt 0:00:04]} 9. e3 {[%emt 0:01:24]} Nc6 {[%emt 0:00:08]} 10. Be2 {[%emt 0:10:25]} d4 {[%emt 0:07:46]} 11. Rd1 {[%emt 0:07:10]} Nb4 {[%emt 0:14:41]} 12. Qb1 {[%emt 0:25:39]} Nbd5 {[%emt 0:05:33]} 13. Nxd5 {[%emt 0:05:52]} Nxd5 {[%emt 0:00:36]} 14. O-O {[%emt 0:01:34]} Nxf4 {[%emt 0:14:26]} 15. exf4 {[%emt 0:00:02]} Qf6 {[%emt 0:51:11]} 16. Ng5 {[%emt 0:02:29]} Bf5 {[%emt 0:00:00]} 17. Bd3 {[%emt 0:00:06]} 1/2-1/2

[Event "British Championship 2024"]
[Site "Hull"]
[Date "2024.07.31"]
[Round "5.42"]
[White "Atako, Chino C"]
[Black "Lentzos, Ioanis"]
[Result "0-1"]
[Annotator "RC"]
[ECO "B22"]
[WhiteElo "2003"]
[BlackElo "2119"]
[PlyCount "95"]
[EventDate "2024.07.31"]
[EventCountry "GBR"]
[SourceTitle "playchess.com"]
[Source "ChessBase"]
[SourceQuality "1"]
[TimeControl "40/5400+30:1800+30"]

1. e4 {[%emt 0:00:04]} c5 {[%emt 0:00:08]} 2. Nf3 {[%emt 0:00:07]} e6 {[%emt 0:00:03]} 3. c3 {[%emt 0:00:11]} d5 {[%emt 0:00:06]} 4. exd5 {[%emt 0:00:09]} Qxd5 {[%emt 0:00:05]} 5. d4 {[%emt 0:00:12]} Nf6 {[%emt 0:00:05]} 6. Be2 {[%emt 0:00:38]} cxd4 {[%emt 0:00:37]} 7. cxd4 {[%emt 0:00:37]} Nc6 {[%emt 0:00:17]} 8. Nc3 {[%emt 0:00:06]} Qd6 {[%emt 0:00:09]} 9. O-O {[%emt 0:00:13]} Be7 {[%emt 0:00:11]} 10. g3 {[%emt 0:06:39]} O-O {[%emt 0:01:03]} 11. Bf4 {[%emt 0:00:30]} Qd8 {[%emt 0:01:36]} 12. Rc1 {[%emt 0:09:46]} b6 {[%emt 0:03:49]} 13. Qa4 {[%emt 0:09:57]} Bb7 {[%emt 0:07:51]} 14. Rfd1 {[%emt 0:00:56]} Nd5 {[%emt 0:03:52]} 15. Bd2 {[%emt 0:08:00]} Nxc3 {[%emt 0:14:48]} 16. bxc3 {[%emt 0:12:03]} Qd5 {[%emt 0:00:29]} 17. Qc4 {[%emt 0:04:10]} Qxc4 {[%emt 0:09:03]} 18. Bxc4 {[%emt 0:00:02]} Na5 {[%emt 0:00:28]} 19. Be2 {[%emt 0:00:11]} Ba3 {[%emt 0:02:33]} 20. Rb1 {[%emt 0:00:04]} Be4 {[%emt 0:01:55]} 21. Rb5 {[%emt 0:00:04]} Rac8 {[%emt 0:02:47]} 22. Ne5 {[%emt 0:01:12]} f6 {[%emt 0:05:37]} 23. Rxa5 {[%emt 0:09:06]} bxa5 {[%emt 0:01:11]} 24. Nc4 {[%emt 0:00:03]} Be7 {[%emt 0:01:54]} 25. Nxa5 {[%emt 0:00:05]} Rfd8 {[%emt 0:04:45]} 26. f3 {[%emt 0:00:17]} Bc2 {[%emt 0:00:49]} 27. Rc1 {[%emt 0:00:36]} Ba4 {[%emt 0:00:17]} 28. Bc4 {[%emt 0:01:40]} Kf7 {[%emt 0:01:48]} 29. Re1 {[%emt 0:00:12]} Rd6 {[%emt 0:01:23]} 30. Bd3 {[%emt 0:11:23]} Bd8 {[%emt 0:15:18]} 31. Nb7 {[%emt 0:06:36]} Rd7 {[%emt 0:00:59]} 32. Nxd8+ {[%emt 0:20:41]} Rdxd8 {[%emt 0:00:46]} 33. Kf2 {[%emt 0:00:00]} e5 {[%emt 0:01:46]} 34. Bf5 {[%emt 0:00:00]} Bd7 {[%emt 0:00:38]} 35. Bxd7 {[%emt 0:00:00]} Rxd7 {[%emt 0:00:04]} 36. Re4 {[%emt 0:00:00]} exd4 {[%emt 0:00:47]} 37. cxd4 {[%emt 0:00:00]} Rc2 {[%emt 0:00:13]} 38. Ke3 {[%emt 0:00:00]} Re7 {[%emt 0:04:23]} 39. Rxe7+ {[%emt 0:00:00]} Kxe7 {[%emt 0:00:03]} 40. Bb4+ {[%emt 0:00:00]} Ke6 {[%emt 0:00:07]} 41. a3 {[%emt 0:22:36]} Rxh2 {[%emt 0:30:34]} 42. Bc5 {[%emt 0:00:06]} a6 {[%emt 0:00:10]} 43. g4 {[%emt 0:00:04]} g6 {[%emt 0:01:08]} 44. Bb6 {[%emt 0:00:47]} h5 {[%emt 0:01:04]} 45. gxh5 {[%emt 0:01:26]} gxh5 {[%emt 0:00:04]} 46. a4 {[%emt 0:00:07]} Ra2 {[%emt 0:00:45]} 47. Kf4 {[%emt 0:00:52]} Rxa4 {[%emt 0:00:22]} 48. Kg3 {[%emt 0:00:08]} 0-1

[Event "British Championship 2024"]
[Site "Hull"]
[Date "2024.07.31"]
[Round "5.43"]
[White "Beaumont, Chris R"]
[Black "Verma, Shlok"]
[Result "0-1"]
[Annotator "RC"]
[ECO "D24"]
[WhiteElo "2198"]
[BlackElo "2102"]
[PlyCount "92"]
[EventDate "2024.07.31"]
[EventCountry "GBR"]
[SourceTitle "playchess.com"]
[Source "ChessBase"]
[SourceQuality "1"]
[TimeControl "40/5400+30:1800+30"]

1. c4 {[%emt 0:00:16]} e6 {[%emt 0:00:19]} 2. Nc3 {[%emt 0:00:13]} d5 {[%emt 0:00:22]} 3. d4 {[%emt 0:00:06]} Nf6 {[%emt 0:00:10]} 4. Nf3 {[%emt 0:00:30]} dxc4 {[%emt 0:00:09]} 5. e4 {[%emt 0:00:09]} b5 {[%emt 0:00:06]} 6. e5 {[%emt 0:02:14]} Nd5 {[%emt 0:00:16]} 7. Nxb5 {[%emt 0:00:13]} Nb6 {[%emt 0:00:12]} 8. Be2 {[%emt 0:00:42]} Nc6 {[%emt 0:00:39]} 9. O-O {[%emt 0:00:39]} Be7 {[%emt 0:00:40]} 10. a4 {[%emt 0:03:33]} Na5 {[%emt 0:25:41]} 11. Be3 {[%emt 0:09:07]} a6 {[%emt 0:15:17]} 12. Nc3 {[%emt 0:02:31]} Bb7 {[%emt 0:03:05]} 13. Qc2 {[%emt 0:00:59]} O-O {[%emt 0:10:01]} 14. Ne4 {[%emt 0:01:48]} Qd5 {[%emt 0:04:35]} 15. Nc5 {[%emt 0:07:59]} Bc6 {[%emt 0:00:39]} 16. Qc3 {[%emt 0:12:06]} Nb3 {[%emt 0:01:25]} 17. Nxb3 {[%emt 0:00:27]} cxb3 {[%emt 0:00:19]} 18. Rfc1 {[%emt 0:02:11]} Bd7 {[%emt 0:03:13]} 19. Qxc7 {[%emt 0:04:54]} Bd8 {[%emt 0:01:11]} 20. Qc5 {[%emt 0:04:50]} Nxa4 {[%emt 0:00:53]} 21. Qxd5 {[%emt 0:04:21]} exd5 {[%emt 0:00:14]} 22. Ra3 {[%emt 0:00:53]} Nxb2 {[%emt 0:00:48]} 23. Rxb3 {[%emt 0:00:18]} Nc4 {[%emt 0:00:20]} 24. Nd2 {[%emt 0:02:43]} Nxe3 {[%emt 0:01:22]} 25. fxe3 {[%emt 0:00:20]} a5 {[%emt 0:06:39]} 26. Rb7 {[%emt 0:04:29]} Be6 {[%emt 0:00:44]} 27. Nb3 {[%emt 0:00:13]} Bg5 {[%emt 0:00:24]} 28. Kf2 {[%emt 0:00:20]} a4 {[%emt 0:01:19]} 29. Nc5 {[%emt 0:00:16]} a3 {[%emt 0:00:29]} 30. Ra1 {[%emt 0:00:39]} a2 {[%emt 0:01:04]} 31. Rb2 {[%emt 0:04:38]} Ra3 {[%emt 0:00:12]} 32. Bd3 {[%emt 0:06:58]} Rfa8 {[%emt 0:00:41]} 33. Ke2 {[%emt 0:03:24]} Bg4+ {[%emt 0:06:25]} 34. Kd2 {[%emt 0:00:10]} Bf5 {[%emt 0:01:57]} 35. Rb3 {[%emt 0:09:12]} Bxd3 {[%emt 0:06:10]} 36. Kxd3 {[%emt 0:02:45]} h5 {[%emt 0:00:33]} 37. Kd2 {[%emt 0:09:35]} Rxb3 {[%emt 0:02:17]} 38. Nxb3 {[%emt 0:00:02]} Ra3 {[%emt 0:00:01]} 39. Kc2 {[%emt 0:00:17]} Bxe3 {[%emt 0:00:23]} 40. Kb2 {[%emt 0:00:02]} Ra4 {[%emt 0:00:02]} 41. Rxa2 {[%emt 0:32:53]} Bxd4+ {[%emt 0:31:13]} 42. Nxd4 {[%emt 0:00:42]} Rxd4 {[%emt 0:00:42]} 43. Ra8+ {[%emt 0:00:02]} Kh7 {[%emt 0:00:08]} 44. Ra7 {[%emt 0:00:18]} Kg6 {[%emt 0:02:20]} 45. Ra6+ {[%emt 0:00:01]} Kf5 {[%emt 0:00:26]} 46. Ra7 {[%emt 0:00:02]} Kxe5 {[%emt 0:07:25]} 0-1

[Event "British Championship 2024"]
[Site "Hull"]
[Date "2024.08.01"]
[Round "6.1"]
[White "Jones, Gawain C B"]
[Black "Ghasi, Ameet K"]
[Result "1/2-1/2"]
[Annotator "TA"]
[ECO "E95"]
[WhiteElo "2633"]
[BlackElo "2496"]
[PlyCount "54"]
[EventDate "2024.07.31"]
[EventCountry "GBR"]
[SourceTitle "playchess.com"]
[Source "ChessBase"]
[SourceQuality "1"]
[TimeControl "40/5400+30:1800+30"]

{[%evp 15,54,39,43,51,68,33,40,31,35,27,39,0,0,0,0,0,0,0,0,0,0,0,0,-21,-16,-23,-17,-37,-19,-67,-41,-65,-39,-41,0,-67,-7,-26,0,-19,8]} 1. d4 {[%emt 0:01:09]} Nf6 {[%emt 0:01:39]} 2. c4 {[%emt 0:00:25]} g6 {[%emt 0:00:12]} 3. Nc3 {[%emt 0:00:05]} Bg7 {[%emt 0:00:04]} 4. e4 {[%emt 0:00:05]} d6 {[%emt 0:00:04]} 5. Be2 {[%emt 0:00:04]} O-O {[%emt 0:01:03]} 6. Nf3 {[%emt 0:00:06]} e5 {[%emt 0:02:40]} 7. O-O {[%emt 0:00:14]} h6 {[%emt 0:00:47]} 8. Re1 {[%emt 0:01:26]} Nbd7 {[%emt 0:03:56]} 9. Qc2 {[%emt 0:03:57]} c6 {[%emt 0:06:40]} 10. h3 {[%emt 0:04:37] White is more active.} exd4 {[%emt 0:12:28]} 11. Nxd4 {[%emt 0:01:06] White is slightly better.} Re8 {[%emt 0:03:06]} 12. Bf4 {[%emt 0:23:36][%cal Oa1d1]} Nc5 {[%emt 0:05:56]} 13. Bf3 {[%emt 0:01:45]} (13. Bf1 $5) 13... Nh7 {[%emt 0:05:54][%cal Bf6h7,Bh7g5,Bg5f7,Bf7e5][%mdl 32]} 14. Rad1 {[%emt 0:10:06][%cal Ba1d1,Bd1e1,Be1e3][%mdl 32]} Ng5 {[%emt 0:12:18]} 15. Bg4 {[%emt 0:09:16]} f5 {[%emt 0:08:30]} 16. Nxf5 {[%emt 0:14:51]} gxf5 {[%emt 0:01:01]} 17. exf5 {[%emt 0:00:04]} Rxe1+ {[%emt 0:03:41]} 18. Rxe1 {[%emt 0:00:50]} Nf7 {[%emt 0:01:54]} 19. Bh5 {[%emt 0:11:56]} Ne5 {[%emt 0:01:48]} 20. Re3 {[%emt 0:00:22] Prevents Ncd3} a5 {[%emt 0:08:55]} (20... Nxc4 $2 {is the wrong capture.} 21. Re8+ $18) (20... Qh4 {feels hotter.} 21. g4 Bxf5 22. Qxf5 Rf8) 21. g4 {[%emt 0:00:26]} Bd7 {[%emt 0:01:08]} 22. Ne4 {[%emt 0:03:28]} (22. Ne2 $11) 22... Nxe4 $1 $15 {[%emt 0:07:43]} 23. Qxe4 {[%emt 0:00:06]} b6 {[%emt 0:03:32]} 24. Bg3 {[%emt 0:01:19]} Qf6 {[%emt 0:01:28]} 25. b3 {[%emt 0:03:56]} ({White should try} 25. Rb3 $11) 25... Kf8 {[%emt 0:01:46]} (25... Rd8 $15) 26. h4 {[%emt 0:01:24]} Rd8 {[%emt 0:01:01]} 27. Kf1 {[%emt 0:00:38]} Rc8 {[%emt 0:02:43] Weighted Error Value: White=0.19 (very precise) /Black=0.12 (very precise) .  Mistake:       	White=2     	Black=1      Inaccurate:     	White=2     	Black=4      OK:         	White=5     	Black=6      Best:        	---       	Black=3      Strong:       	---       	Black=1} 1/2-1/2

[Event "British Championship 2024"]
[Site "Hull"]
[Date "2024.08.01"]
[Round "6.2"]
[White "Wadsworth, Matthew J"]
[Black "Royal, Shreyas"]
[Result "1-0"]
[Annotator "TA"]
[ECO "A34"]
[WhiteElo "2467"]
[BlackElo "2483"]
[PlyCount "97"]
[EventDate "2024.07.31"]
[EventCountry "GBR"]
[SourceTitle "playchess.com"]
[Source "ChessBase"]
[SourceQuality "1"]
[TimeControl "40/5400+30:1800+30"]

{[%evp 22,97,28,-5,0,0,0,0,0,0,0,0,5,4,8,-7,0,0,0,0,0,0,0,0,0,0,18,18,10,15,16,13,19,10,22,39,31,25,372,370,337,268,399,413,416,398,416,413,390,396,364,294,331,339,29967,0,0,0,29968,29969,29969,29970,29972,29973,29973,29974,29974,29975,29975,29976,29976,29977,29977,29978,29978,29979,29979,29979]} 1. Nf3 {[%emt 0:00:05]} Nf6 {[%emt 0:00:37]} 2. g3 {[%emt 0:00:19]} c5 {[%emt 0:00:26]} 3. Bg2 {[%emt 0:00:43]} Nc6 {[%emt 0:00:14]} 4. c4 {[%emt 0:00:48]} d5 {[%emt 0:00:20]} 5. cxd5 {[%emt 0:01:58]} Nxd5 {[%emt 0:00:06]} 6. Nc3 {[%emt 0:00:10]} Nxc3 {[%emt 0:00:59]} 7. bxc3 {[%emt 0:00:57]} e5 {[%emt 0:00:40]} 8. O-O {[%emt 0:00:30]} Be7 {[%emt 0:00:16]} 9. d3 {[%emt 0:00:52]} O-O {[%emt 0:00:31] A34: Symmetrical English: 2 Nc3, lines with ...d5.} 10. Nd2 {[%emt 0:00:43]} Be6 {[%emt 0:00:54]} 11. Nc4 {[%emt 0:02:07]} Qc7 {[%emt 0:07:58]} 12. Ne3 {[%emt 0:04:54]} (12. Rb1 $5) 12... Qd7 {[%emt 0:01:46]} 13. c4 {[%emt 0:04:19]} Bh3 {[%emt 0:02:20]} 14. Bxh3 $146 {[%emt 0:14:20]} ({Predecessor:} 14. Rb1 Bxg2 15. Kxg2 Rae8 16. Nd5 f5 17. e4 Bd8 18. f3 Ba5 19. Be3 b6 20. Rb2 Rf7 21. Rbf2 {½-½ Ipatov,A (2631)-Roiz,M (2598) PRO League Stage rapid 2020 (1)}) 14... Qxh3 {[%emt 0:00:05]} 15. Nd5 {[%emt 0:00:28]} Bd6 {[%emt 0:01:31]} 16. e3 {[%emt 0:06:22]} Rfe8 {[%emt 0:14:29]} 17. Rb1 {[%emt 0:08:04]} b6 {[%emt 0:07:54]} 18. Bb2 {[%emt 0:01:22]} Rad8 {[%emt 0:10:31]} 19. Qf3 {[%emt 0:03:38]} Nb4 {[%emt 0:02:24]} 20. e4 {[%emt 0:06:57]} Nxd5 {[%emt 0:01:35]} 21. exd5 {[%emt 0:03:10]} Qd7 {[%emt 0:03:25]} 22. Rfe1 {[%emt 0:04:47]} b5 {[%emt 0:00:54]} 23. cxb5 {[%emt 0:02:13]} f6 {[%emt 0:03:51]} 24. a4 {[%emt 0:01:43]} Bc7 {[%emt 0:01:02]} 25. Ba3 {[%emt 0:04:12]} Qxd5 {[%emt 0:00:31]} 26. Qe4 {[%emt 0:00:30]} Bb6 {[%emt 0:01:11]} 27. Rec1 {[%emt 0:01:12]} Qxd3 {[%emt 0:08:17]} 28. Qxd3 {[%emt 0:04:35]} Rxd3 {[%emt 0:00:01]} 29. Bxc5 {[%emt 0:00:09]} Red8 $2 {[%emt 0:04:57][%mdl 8192]} (29... Bxc5 $11 {and Black stays safe.} 30. Rxc5 Ra3) 30. Bxb6 $1 $18 {[%emt 0:03:40]} axb6 {[%emt 0:00:01] [#]} 31. a5 $1 {[%emt 0:02:04]} bxa5 {[%emt 0:06:26]} (31... Kf7 $142 32. a6 (32. axb6 Rb8 $18) 32... Ra3) 32. b6 $18 {[%emt 0:01:07]} Rb8 {[%emt 0:00:04]} 33. b7 {[%emt 0:01:01]} Rdd8 {[%emt 0:00:04]} 34. Rc7 {[%emt 0:00:58]} Rf8 {[%emt 0:04:09] [#]} 35. Rbc1 $1 {[%emt 0:01:42]} (35. Ra1 Rf7 36. Rc8+ Rf8 $16) 35... a4 {[%emt 0:00:05]} 36. Rd7 {[%emt 0:02:26]} (36. Ra1 Rf7 37. Rc8+ Rf8 $16) 36... a3 {[%emt 0:06:57]} 37. Rcc7 {[%emt 0:04:54]} Rf7 $2 {[%emt 0:00:04]} (37... Kh8 $18 38. Rc3 (38. Rxg7 Rfd8 $16) 38... a2) 38. Rc8+ $2 {[%emt 0:03:13]} (38. Rxf7 {mates} a2 39. Kg2 (39. Rxg7+ Kf8 $18) 39... a1=Q 40. Rxg7+ Kh8 41. Rxh7+ Kg8 42. Rhd7 Qa6 43. h4) 38... Rf8 $11 {[%emt 0:00:04]} 39. Rcc7 $2 {[%emt 0:00:16][%mdl 8192]} (39. Rc2 $11) 39... Rf7 $1 {[%emt 0:00:04]} 40. Rxf7 {[%emt 0:04:23]} a2 {[%emt 0:00:03]} 41. Rxg7+ {[%emt 0:30:38]} Kf8 {[%emt 0:30:37]} 42. Rcf7+ {[%emt 0:00:00]} Ke8 {[%emt 0:00:00]} 43. Rxh7 {[%emt 0:00:00]} a1=Q+ {[%emt 0:00:00]} 44. Kg2 {[%emt 0:00:00]} Qa2 {[%emt 0:00:00]} 45. Rc7 {[%emt 0:00:00]} Qd5+ {[%emt 0:00:00]} 46. f3 {[%emt 0:00:00]} Qa2+ {[%emt 0:00:00]} 47. Kh3 {[%emt 0:00:00]} Qe6+ {[%emt 0:00:00]} 48. Kh4 {[%emt 0:00:00]} Kd8 {[%emt 0:00:00]} 49. Rc8+ {[%emt 0:00:00]} 1-0

[Event "British Championship 2024"]
[Site "Hull"]
[Date "2024.08.01"]
[Round "6.3"]
[White "Howell, David W L"]
[Black "Adams, Michael"]
[Result "1/2-1/2"]
[Annotator "TA"]
[ECO "A29"]
[WhiteElo "2675"]
[BlackElo "2670"]
[PlyCount "82"]
[EventDate "2024.07.31"]
[EventCountry "GBR"]
[SourceTitle "playchess.com"]
[Source "ChessBase"]
[SourceQuality "1"]
[TimeControl "40/5400+30:1800+30"]

{[%evp 12,82,31,36,23,21,5,20,4,8,5,10,8,5,37,19,39,22,30,5,9,0,0,0,0,-6,0,-82,-81,-79,-78,-193,-21,-6,-15,-28,-26,-19,-35,-16,-16,-12,-15,-14,-5,-10,-3,-3,-8,-8,-11,-11,-8,-8,0,-7,0,0,0,0,0,0,0,0,0,0,0,0,0,0,0,0,0]} 1. c4 {[%emt 0:05:24]} e5 {[%emt 0:00:08]} 2. Nc3 {[%emt 0:00:24]} Nf6 {[%emt 0:00:09]} 3. Nf3 {[%emt 0:00:17]} Nc6 {[%emt 0:00:11]} 4. g3 {[%emt 0:00:13]} d5 {[%emt 0:03:29]} 5. cxd5 {[%emt 0:00:46]} Nxd5 {[%emt 0:00:04]} 6. Bg2 {[%emt 0:00:07]} Nf6 {[%emt 0:00:58]} 7. O-O {[%emt 0:01:11]} h6 {[%emt 0:00:42]} 8. b4 {[%emt 0:12:45]} e4 {[%emt 0:05:55]} (8... Bxb4 9. Nxe5 O-O 10. Nxc6 bxc6 11. Qc2 $16 (11. Bxc6 Bh3 $14)) 9. Ne1 {[%emt 0:00:18]} Bxb4 {[%emt 0:00:10]} 10. Nxe4 {[%emt 0:00:23]} Nxe4 {[%emt 0:00:56]} 11. Bxe4 {[%emt 0:00:06]} O-O {[%emt 0:00:23]} 12. Rb1 {[%emt 0:11:55] [#] Hoping for Bxc6.} Ba5 {[%emt 0:09:56]} 13. e3 {[%emt 0:02:45][%cal Be2e3,Be3e4][%mdl 32]} Re8 {[%emt 0:03:17]} 14. Bg2 {[%emt 0:05:09]} Ne5 {[%emt 0:09:45]} 15. d4 {[%emt 0:02:13]} c5 {[%emt 0:03:06]} 16. Nc2 {[%emt 0:17:05]} (16. Nf3 {simplifies} Nxf3+ 17. Bxf3 cxd4 18. Qxd4 Qxd4 19. exd4 Bh3 20. Rd1) 16... Bg4 {[%emt 0:12:54]} 17. f3 {[%emt 0:00:59]} Bf5 {[%emt 0:00:05]} 18. e4 {[%emt 0:08:33]} (18. dxe5 $2 Qxd1 19. Rxd1 Bxc2 $19) 18... cxd4 {[%emt 0:00:38]} 19. Nxd4 {[%emt 0:09:27]} (19. exf5 $11 d3 20. Na3) 19... Bb6 $1 $17 {[%emt 0:04:00]} 20. Be3 {[%emt 0:14:05]} (20. Rxb6 $2 Qxb6 21. Be3 (21. exf5 $2 Nc6 $19) 21... Rad8 $19) 20... Be6 {[%emt 0:01:08]} 21. Nc2 {[%emt 0:01:12]} (21. Nf5 $17 {was worth a try.}) 21... Nc4 $2 {[%emt 0:08:00]} (21... Bxa2 22. Qxd8 Rexd8 (22... Raxd8 23. Ra1 $17) 23. Ra1 $17) (21... Qc8 $19 {White must now prevent ...Rd8.} 22. Bxb6 axb6) 22. Bxb6 $11 {[%emt 0:01:14]} axb6 {[%emt 0:00:06]} ({Don't take} 22... Nxb6 23. Qxd8 Raxd8 (23... Rexd8 24. f4 $15) 24. f4 $15) 23. Qxd8 {[%emt 0:02:59]} Rexd8 {[%emt 0:00:06]} 24. Ra1 {[%emt 0:00:12]} Rd2 {[%emt 0:06:40]} 25. Rf2 {[%emt 0:00:04]} Rxf2 {[%emt 0:01:04] The position is equal.} 26. Kxf2 {[%emt 0:00:03]} Rd8 {[%emt 0:00:05] [#] And now ...Rd2+ would win.} 27. Re1 {[%emt 0:01:29]} Ne5 {[%emt 0:08:33] ...Nd3+ is the strong threat.} 28. Nb4 {[%emt 0:01:09]} Rd4 {[%emt 0:04:40]} 29. a3 {[%emt 0:00:04]} Nc4 {[%emt 0:00:29]} 30. Nc2 {[%emt 0:01:00]} Rd2+ {[%emt 0:00:45]} 31. Re2 {[%emt 0:00:02]} Rd3 {[%emt 0:00:04]} 32. Bf1 {[%emt 0:01:57]} b5 {[%emt 0:03:20]} 33. Re1 {[%emt 0:00:39]} Rc3 {[%emt 0:00:49]} 34. Nd4 {[%emt 0:00:17]} Nxa3 {[%emt 0:01:05]} (34... Rxa3 35. Nxb5 Ra2+ 36. Re2) 35. Nxb5 {[%emt 0:00:48]} Nxb5 {[%emt 0:01:21]} 36. Bxb5 {[%emt 0:00:06][%mdl 4096] Endgame. KRB-KRB} Rb3 {[%emt 0:00:04]} 37. Be2 {[%emt 0:00:41]} b5 {[%emt 0:00:14]} 38. f4 {[%emt 0:00:44]} g6 {[%emt 0:03:42]} 39. Ra1 {[%emt 0:00:28]} h5 {[%emt 0:03:42]} 40. Ra7 {[%emt 0:00:30]} Rb2 {[%emt 0:01:56]} 41. Ke3 {[%emt 0:03:26]} Bc4 {[%emt 0:03:15] Weighted Error Value: White=0.12 (very precise) /Black=0.11 (very precise) .  Missed win:     	---       	Black=1      Mistake:       	White=2     	---        Inaccurate:     	---       	Black=1      OK:         	White=15    	Black=19     Best:        	White=4     	Black=1      Strong:       	---       	Black=1} 1/2-1/2

[Event "British Championship 2024"]
[Site "Hull"]
[Date "2024.08.01"]
[Round "6.4"]
[White "Czopor, Maciej"]
[Black "McShane, Luke J"]
[Result "0-1"]
[Annotator "RC"]
[ECO "C47"]
[WhiteElo "2361"]
[BlackElo "2617"]
[PlyCount "156"]
[EventDate "2024.07.31"]
[EventCountry "GBR"]
[SourceTitle "playchess.com"]
[Source "ChessBase"]
[SourceQuality "1"]
[TimeControl "40/5400+30:1800+30"]

1. e4 {[%emt 0:00:03]} e5 {[%emt 0:03:59]} 2. Nf3 {[%emt 0:00:06]} Nc6 {[%emt 0:00:11]} 3. Nc3 {[%emt 0:00:07]} Nf6 {[%emt 0:00:33]} 4. d4 {[%emt 0:00:07]} Bb4 {[%emt 0:00:05]} 5. Nxe5 {[%emt 0:00:47]} Bxc3+ {[%emt 0:00:06]} 6. bxc3 {[%emt 0:00:06]} Qe7 {[%emt 0:00:03]} 7. Nxc6 {[%emt 0:16:28]} Qxe4+ {[%emt 0:00:06]} 8. Be2 {[%emt 0:00:14]} Qxc6 {[%emt 0:00:19]} 9. O-O {[%emt 0:00:11]} O-O {[%emt 0:00:15]} 10. Qd3 {[%emt 0:11:22]} d5 {[%emt 0:00:46]} 11. Bf4 {[%emt 0:01:32]} Ne4 {[%emt 0:16:06]} 12. c4 {[%emt 0:04:16]} dxc4 {[%emt 0:00:42]} 13. Qxc4 {[%emt 0:01:46]} Nc3 {[%emt 0:00:11]} 14. Bd3 {[%emt 0:00:43]} Qxc4 {[%emt 0:00:58]} 15. Bxc4 {[%emt 0:00:04]} Be6 {[%emt 0:00:08]} 16. Bd3 {[%emt 0:04:33]} c6 {[%emt 0:34:56]} 17. a4 {[%emt 0:03:19]} Bf5 {[%emt 0:02:40]} 18. Bxf5 {[%emt 0:00:23]} Ne2+ {[%emt 0:00:05]} 19. Kh1 {[%emt 0:00:05]} Nxf4 {[%emt 0:00:04]} 20. Rab1 {[%emt 0:06:05]} Rab8 {[%emt 0:03:56]} 21. Rfe1 {[%emt 0:01:22]} Rfd8 {[%emt 0:03:00]} 22. g3 {[%emt 0:05:34]} Nd5 {[%emt 0:00:41]} 23. Rb3 {[%emt 0:07:18]} Kf8 {[%emt 0:02:43]} 24. Bd3 {[%emt 0:06:57]} Nf6 {[%emt 0:14:24]} 25. Reb1 {[%emt 0:00:48]} b6 {[%emt 0:08:53]} 26. a5 {[%emt 0:04:08]} b5 {[%emt 0:00:04]} 27. c4 {[%emt 0:00:04]} b4 {[%emt 0:00:07]} 28. Rxb4 {[%emt 0:01:03]} Rxb4 {[%emt 0:00:04]} 29. Rxb4 {[%emt 0:00:06]} Rxd4 {[%emt 0:00:03]} 30. Bf1 {[%emt 0:01:29]} Ke7 {[%emt 0:04:01]} 31. Kg2 {[%emt 0:00:39]} Ne4 {[%emt 0:00:40]} 32. Kf3 {[%emt 0:01:58]} Nc5 {[%emt 0:00:45]} 33. Ke3 {[%emt 0:00:39]} Rd8 {[%emt 0:00:25]} 34. Rb1 {[%emt 0:04:12]} Kd6 {[%emt 0:01:06]} 35. Kd4 {[%emt 0:00:06]} g6 {[%emt 0:01:06]} 36. Bg2 {[%emt 0:01:07]} Rd7 {[%emt 0:00:39]} 37. Kc3 {[%emt 0:01:26]} Kc7 {[%emt 0:00:17]} 38. Re1 {[%emt 0:00:47]} f5 {[%emt 0:02:56]} 39. Re8 {[%emt 0:00:26]} Rd3+ {[%emt 0:00:39]} 40. Kc2 {[%emt 0:00:49]} Ra3 {[%emt 0:00:23]} 41. Kb2 {[%emt 0:30:51]} Rxa5 {[%emt 0:06:57]} 42. Re7+ {[%emt 0:00:00]} Kb6 {[%emt 0:01:14]} 43. Rxh7 {[%emt 0:00:00]} Nd3+ {[%emt 0:00:08]} 44. Kb3 {[%emt 0:00:00]} Ra1 {[%emt 0:05:41]} 45. Rg7 {[%emt 0:00:00]} Rg1 {[%emt 0:03:39]} 46. Bf3 {[%emt 0:00:00]} Re1 {[%emt 0:02:33]} 47. Kc2 {[%emt 0:00:00]} Ne5 {[%emt 0:01:50]} 48. Bd1 {[%emt 0:00:00]} a5 {[%emt 0:08:09]} 49. Re7 {[%emt 0:00:00]} Re4 {[%emt 0:00:30]} 50. Re6 {[%emt 0:00:00]} Kc5 {[%emt 0:01:50]} 51. Kb3 {[%emt 0:00:17]} Nxc4 {[%emt 0:00:31]} 52. Rxg6 {[%emt 0:00:08]} a4+ {[%emt 0:00:45]} 53. Kc3 {[%emt 0:00:30]} Nd6 {[%emt 0:01:01]} 54. Rg8 {[%emt 0:02:36]} Nb5+ {[%emt 0:00:32]} 55. Kd2 {[%emt 0:00:15]} Rd4+ {[%emt 0:00:30]} 56. Kc2 {[%emt 0:01:09]} a3 {[%emt 0:00:31]} 57. Ra8 {[%emt 0:00:44]} Kb4 {[%emt 0:00:31]} 58. h4 {[%emt 0:01:22]} c5 {[%emt 0:00:49]} 59. Bh5 {[%emt 0:02:05]} Rd6 {[%emt 0:00:43]} 60. Bf7 {[%emt 0:01:16]} c4 {[%emt 0:01:11]} 61. Rc8 {[%emt 0:01:01]} Nd4+ {[%emt 0:01:25]} 62. Kb1 {[%emt 0:00:27]} Nc6 {[%emt 0:00:08]} 63. Ra8 {[%emt 0:04:25]} Na5 {[%emt 0:00:44]} 64. Rxa5 {[%emt 0:00:22]} Kxa5 {[%emt 0:00:09]} 65. Bxc4 {[%emt 0:00:05]} Kb4 {[%emt 0:00:33]} 66. Bf7 {[%emt 0:00:20]} Rd1+ {[%emt 0:00:39]} 67. Kc2 {[%emt 0:00:05]} Rf1 {[%emt 0:00:07]} 68. Kd3 {[%emt 0:01:00]} Rxf2 {[%emt 0:00:40]} 69. Ke3 {[%emt 0:01:01]} a2 {[%emt 0:00:50]} 70. Bxa2 {[%emt 0:00:04]} Rxa2 {[%emt 0:00:03]} 71. Kf4 {[%emt 0:00:05]} Kc5 {[%emt 0:00:16]} 72. Kxf5 {[%emt 0:00:16]} Kd6 {[%emt 0:00:03]} 73. Kf6 {[%emt 0:00:11]} Rf2+ {[%emt 0:00:36]} 74. Kg7 {[%emt 0:00:07]} Ke7 {[%emt 0:00:43]} 75. h5 {[%emt 0:00:21]} Rg2 {[%emt 0:00:18]} 76. h6 {[%emt 0:00:04]} Rxg3+ {[%emt 0:00:03]} 77. Kh8 {[%emt 0:00:14]} Kf6 {[%emt 0:00:14]} 78. h7 {[%emt 0:00:23]} Ra3 {[%emt 0:00:07]} 0-1